bitfinex/quotes_SOLUSD_20240620
["timestamp","ask_amount","ask_price","bid_price","bid_amount"]
[1718871745101,0.34,137.33,137.25,6.4948]
[1718871745102,0.34,137.32,137.25,6.4948]
[1718871745315,0.34,137.31,137.25,6.4948]
[1718871746292,0.34,137.31,137.26,45.0]
[1718871746693,0.34,137.31,137.23,16.6115]
[1718871746694,0.17,137.3,137.23,22.7837]
[1718871746895,0.34,137.31,137.23,44.7537]
[1718871747083,0.34,137.31,137.23,22.7837]
[1718871748308,0.34,137.31,137.24,45.0]
[1718871748505,20.0,137.33,137.24,66.97]
[1718871748804,20.0,137.33,137.25,20.0]
[1718871749009,20.0,137.36,137.26,45.0]
[1718871750499,0.68,137.35,137.26,45.0]
[1718871751612,0.17,137.35,137.26,66.97]
[1718871751783,20.0,137.36,137.27,20.0]
[1718871751984,20.0,137.38,137.28,45.0]
[1718871752803,20.0,137.38,137.28,66.91]
[1718871753305,20.0,137.38,137.29,41.91]
[1718871753497,20.0,137.38,137.3,45.0]
[1718871753698,20.0,137.39,137.3,45.0]
[1718871755609,0.68,137.38,137.3,45.0]
[1718871756688,0.68,137.38,137.25,23.0526]
[1718871756689,0.17,137.36,137.25,23.0526]
[1718871756906,0.17,137.36,137.25,44.9626]
[1718871756907,20.68,137.36,137.25,44.9626]
[1718871757415,20.68,137.36,137.25,23.0526]
[1718871758003,20.68,137.36,137.26,45.0]
[1718871758522,20.68,137.36,137.25,23.0526]
[1718871758893,20.68,137.36,137.25,44.9626]
[1718871759203,20.68,137.36,137.25,23.0526]
[1718871759791,20.68,137.36,137.26,45.0]
[1718871761118,21.41,137.34,137.22,16.1244]
[1718871761417,20.34,137.33,137.22,16.1244]
[1718871761598,20.68,137.33,137.22,16.1244]
[1718871762530,20.68,137.33,137.23,45.0]
[1718871764335,20.68,137.33,137.23,66.91]
[1718871764525,20.68,137.33,137.24,41.91]
[1718871764824,20.68,137.33,137.25,45.0]
[1718871765320,21.41,137.37,137.25,45.0]
[1718871765495,26.4200229,137.38,137.26,20.0]
[1718871765696,26.4200229,137.38,137.27,45.0]
[1718871766599,0.34,137.37,137.27,45.0]
[1718871767326,0.34,137.36,137.27,45.0]
[1718871767502,0.34,137.35,137.27,45.0]
[1718871767702,0.17,137.34,137.27,45.0]
[1718871767927,0.34,137.34,137.27,45.0]
[1718871768099,0.34,137.33,137.27,45.0]
[1718871768306,0.17,137.34,137.27,45.0]
[1718871768695,0.34,137.34,137.27,45.0]
[1718871768925,0.34,137.33,137.27,45.0]
[1718871769806,0.34,137.32,137.27,45.0]
[1718871770934,0.34,137.31,137.27,45.0]
[1718871771231,0.17,137.3,137.27,45.0]
[1718871771415,0.17,137.3,137.22,16.1244]
[1718871771416,0.34,137.3,137.22,16.1244]
[1718871771612,0.51,137.29,137.21,6.0811]
[1718871771810,0.17,137.28,137.21,6.0811]
[1718871772421,0.17,137.28,137.19,40.689326]
[1718871773026,0.17,137.28,137.2,45.0]
[1718871773527,0.17,137.28,137.21,20.0]
[1718871773721,0.17,137.28,137.22,45.0]
[1718871774514,0.34,137.28,137.22,45.0]
[1718871779434,0.17,137.28,137.22,45.0]
[1718871783437,7.15,137.27,137.22,45.0]
[1718871784121,7.15,137.27,137.22,52.15]
[1718871784636,7.15,137.27,137.22,45.0]
[1718871784934,0.17,137.28,137.19,40.689326]
[1718871784935,7.15,137.25,137.19,25.929326]
[1718871785135,7.15,137.25,137.2,20.0]
[1718871785815,7.15,137.26,137.21,1.51454621]
[1718871786016,20.0,137.31,137.23,7.15]
[1718871786226,7.15,137.29,137.23,7.15]
[1718871786531,7.15,137.29,137.24,47.08925338]
[1718871786708,7.15,137.29,137.24,45.0]
[1718871786908,7.15,137.3,137.25,7.15]
[1718871787108,20.0,137.32,137.26,45.0]
[1718871787311,7.15,137.3,137.26,45.0]
[1718871787541,20.0,137.33,137.26,45.0]
[1718871787829,21.44,137.35,137.26,45.0]
[1718871787830,20.0,137.34,137.26,45.0]
[1718871788527,0.34,137.33,137.26,45.0]
[1718871788734,0.17,137.31,137.26,45.0]
[1718871788919,20.68,137.31,137.26,45.0]
[1718871790850,20.68,137.31,137.2,20.0]
[1718871791014,20.68,137.31,137.21,45.0]
[1718871791943,20.68,137.31,137.21,66.91]
[1718871792118,20.68,137.31,137.22,41.91]
[1718871792317,0.68,137.31,137.23,45.0]
[1718871793634,7.6182509,137.38,137.25,38.5397]
[1718871793845,20.0,137.37,137.26,86.91]
[1718871794225,21.44,137.39,137.26,87.08]
[1718871794428,22.2904385,137.4,137.27,0.68]
[1718871794725,21.02301907,137.4,137.27,0.68]
[1718871794917,21.02301907,137.4,137.26,86.91]
[1718871795239,21.02301907,137.4,137.27,0.51]
[1718871795540,21.02301907,137.4,137.27,0.17]
[1718871796037,20.0,137.39,137.27,0.17]
[1718871796411,0.17,137.38,137.27,0.17]
[1718871796616,0.68,137.38,137.27,0.17]
[1718871796819,22.12,137.38,137.26,86.91]
[1718871797242,0.17,137.36,137.26,86.91]
[1718871797422,0.68,137.36,137.26,86.91]
[1718871798137,0.51,137.36,137.28,28.0625]
[1718871798324,0.51,137.36,137.29,65.0]
[1718871798916,20.0,137.39,137.29,86.91]
[1718871799118,0.68,137.38,137.29,86.91]
[1718871799334,0.34,137.38,137.29,86.91]
[1718871799827,20.0,137.39,137.29,86.91]
[1718871800027,20.0,137.39,137.29,65.0]
[1718871800342,20.0,137.39,137.29,20.0]
[1718871800835,0.34,137.38,137.29,20.0]
[1718871801040,0.51,137.37,137.29,20.0]
[1718871801343,0.17,137.36,137.29,20.0]
[1718871801935,0.17,137.36,137.3,45.0]
[1718871804132,0.17,137.35,137.25,16.6297]
[1718871804436,20.51,137.35,137.25,16.6297]
[1718871804632,0.17,137.34,137.25,16.6297]
[1718871804834,0.51,137.34,137.25,16.6297]
[1718871805027,0.17,137.33,137.25,16.6297]
[1718871805229,0.51,137.33,137.25,16.6297]
[1718871805440,0.17,137.32,137.25,16.6297]
[1718871805641,0.51,137.32,137.25,16.6297]
[1718871806333,0.51,137.32,137.26,45.0]
[1718871806721,0.17,137.31,137.25,16.6297]
[1718871807037,0.51,137.31,137.24,6.4638]
[1718871807547,0.17,137.3,137.24,6.4638]
[1718871807739,0.51,137.3,137.24,6.4638]
[1718871808322,0.51,137.3,137.25,45.0]
[1718871810455,21.44,137.37,137.26,20.0]
[1718871810754,20.0,137.36,137.27,45.0]
[1718871811829,0.68,137.35,137.27,45.0]
[1718871813127,0.68,137.35,137.24,6.4638]
[1718871813544,0.17,137.33,137.24,6.4638]
[1718871813726,20.68,137.33,137.24,6.4638]
[1718871814744,20.68,137.33,137.25,45.0]
[1718871815045,20.68,137.33,137.22,15.4729]
[1718871816230,20.68,137.33,137.23,45.0]
[1718871817856,0.17,137.3,137.22,15.4729]
[1718871818055,20.68,137.3,137.22,15.4729]
[1718871819352,20.68,137.3,137.23,45.0]
[1718871819655,20.68,137.3,137.22,15.4729]
[1718871819858,20.68,137.3,137.18,16.3818]
[1718871819859,0.17,137.27,137.18,16.3818]
[1718871820059,20.68,137.27,137.19,20.0]
[1718871820265,20.68,137.27,137.18,16.3818]
[1718871821637,20.68,137.27,137.19,45.0]
[1718871822259,20.0,137.27,137.19,66.91]
[1718871822451,20.0,137.3,137.19,45.0]
[1718871822634,20.0,137.3,137.19,66.91]
[1718871823445,0.34,137.29,137.2,41.91]
[1718871823657,0.34,137.28,137.21,45.0]
[1718871824364,0.17,137.27,137.21,45.0]
[1718871824567,0.34,137.27,137.21,45.0]
[1718871824753,0.17,137.26,137.21,45.0]
[1718871825639,20.0,137.3,137.21,45.0]
[1718871826852,0.17,137.29,137.21,45.0]
[1718871827064,20.0,137.3,137.21,45.0]
[1718871827248,20.0,137.31,137.21,45.0]
[1718871828050,20.0,137.31,137.21,66.91]
[1718871828257,20.0,137.31,137.22,20.0]
[1718871828459,20.0,137.31,137.23,45.0]
[1718871829344,0.17,137.3,137.23,51.394]
[1718871829665,0.68,137.3,137.23,51.394]
[1718871831163,0.68,137.3,137.23,45.0]
[1718871835645,0.68,137.3,137.18,21.91]
[1718871835848,21.44,137.27,137.15,26.1586]
[1718871836161,20.51,137.26,137.15,6.1586]
[1718871836363,20.34,137.26,137.15,6.1586]
[1718871836549,0.17,137.24,137.15,6.1586]
[1718871836745,20.17,137.24,137.15,6.1586]
[1718871836973,20.17,137.24,137.15,28.0686]
[1718871837178,0.17,137.24,137.15,28.0686]
[1718871837478,0.34,137.24,137.15,28.0686]
[1718871837653,0.17,137.24,137.16,66.91]
[1718871837975,21.44,137.28,137.16,66.91]
[1718871838195,20.17,137.27,137.16,66.91]
[1718871838370,20.17,137.27,137.17,20.0]
[1718871838567,20.17,137.27,137.18,45.0]
[1718871839155,0.51,137.26,137.18,45.0]
[1718871839361,0.17,137.25,137.18,45.0]
[1718871840388,0.17,137.25,137.15,6.1586]
[1718871840565,20.0,137.29,137.16,20.0]
[1718871840901,20.0,137.29,137.16,41.91]
[1718871841196,20.0,137.29,137.16,20.0]
[1718871841362,25.18652519,137.29,137.16,20.0]
[1718871841679,25.18652519,137.29,137.16,41.91]
[1718871841985,25.18652519,137.29,137.17,45.0]
[1718871842484,0.68,137.28,137.17,45.0]
[1718871843893,0.68,137.28,137.15,6.1586]
[1718871844071,45.68,137.28,137.15,6.1586]
[1718871844393,0.17,137.26,137.15,6.1586]
[1718871844588,0.68,137.26,137.15,6.1586]
[1718871845963,0.68,137.26,137.14,15.6595]
[1718871846163,25.72,137.26,137.14,15.6595]
[1718871846389,0.17,137.24,137.12,6.3991]
[1718871846589,0.51,137.24,137.12,6.3991]
[1718871846795,41.03255283,137.25,137.12,6.3991]
[1718871847285,41.03255283,137.25,137.12,28.3091]
[1718871847995,0.34,137.24,137.12,28.3091]
[1718871848291,0.68,137.24,137.13,65.0]
[1718871850591,0.68,137.24,137.13,20.0]
[1718871852280,0.68,137.24,137.14,45.0]
[1718871852485,0.07484657,137.15,137.14,45.0]
[1718871856685,0.07484657,137.15,137.1,16.1052]
[1718871856883,0.07484657,137.15,137.11,20.0]
[1718871857079,0.07484657,137.15,137.1,16.1052]
[1718871859095,0.07484657,137.15,137.11,41.91]
[1718871859300,21.04149106,137.25,137.14,28.5642]
[1718871859502,255.9,137.26,137.16,38.1541]
[1718871859682,20.0,137.25,137.17,65.0]
[1718871859879,255.9,137.26,137.17,65.0]
[1718871860694,0.17,137.25,137.17,65.0]
[1718871860894,0.68,137.25,137.17,65.0]
[1718871861380,255.9,137.26,137.17,86.91]
[1718871862682,0.17,137.25,137.17,65.0]
[1718871863678,0.17,137.24,137.17,65.0]
[1718871863883,0.51,137.24,137.17,65.0]
[1718871864101,0.17,137.23,137.17,65.0]
[1718871864284,0.51,137.23,137.17,65.0]
[1718871865403,20.0,137.27,137.17,65.0]
[1718871865718,0.68,137.26,137.17,45.0]
[1718871866005,0.34,137.26,137.17,45.0]
[1718871867212,0.34,137.25,137.17,45.0]
[1718871867395,0.17,137.24,137.17,45.0]
[1718871867706,26.96486301,137.28,137.17,66.91]
[1718871868005,21.03256213,137.3,137.2,6.2495]
[1718871868185,20.0,137.29,137.21,45.0]
[1718871869213,0.68,137.28,137.21,45.0]
[1718871869508,0.17,137.28,137.21,45.0]
[1718871870610,0.17,137.27,137.21,45.0]
[1718871870791,0.51,137.27,137.21,45.0]
[1718871870990,0.51,137.27,137.17,6.1937]
[1718871871308,0.17,137.26,137.17,6.1937]
[1718871872389,0.17,137.26,137.18,45.0]
[1718871875680,0.51,137.26,137.18,45.0]
[1718871876618,0.17,137.25,137.17,6.1937]
[1718871876793,0.34,137.25,137.17,6.1937]
[1718871876991,0.17,137.23,137.17,6.1937]
[1718871877318,0.34,137.23,137.17,6.1937]
[1718871877486,0.34,137.22,137.17,6.1937]
[1718871877688,0.17,137.21,137.17,6.1937]
[1718871878002,0.34,137.21,137.13,15.9724]
[1718871878385,0.34,137.2,137.13,15.9724]
[1718871879006,0.17,137.19,137.07,21.3645]
[1718871879191,21.8,137.19,137.08,20.0]
[1718871879393,0.17,137.17,137.08,20.0]
[1718871879598,0.34,137.17,137.07,21.3645]
[1718871879806,0.17,137.15,137.07,21.3645]
[1718871879986,0.34,137.15,137.07,21.3645]
[1718871880191,0.34,137.14,137.07,21.3645]
[1718871880392,0.17,137.13,137.07,21.3645]
[1718871880608,20.0,137.15,137.07,21.3645]
[1718871881519,0.34,137.14,137.08,45.0]
[1718871881700,21.63,137.16,137.08,45.0]
[1718871882006,0.17,137.15,137.08,45.0]
[1718871882389,0.34,137.16,137.08,45.0]
[1718871884211,0.17,137.15,137.08,45.0]
[1718871884417,0.51,137.15,137.08,45.0]
[1718871884588,0.51,137.14,137.08,45.0]
[1718871884789,0.17,137.15,137.08,45.0]
[1718871885403,0.17,137.15,137.04,28.4586]
[1718871885913,0.17,137.13,137.04,28.4586]
[1718871886093,20.68,137.13,137.04,28.4586]
[1718871886423,0.34,137.13,137.04,28.4586]
[1718871886595,0.17,137.13,137.05,87.08]
[1718871887596,0.17,137.15,137.05,87.08]
[1718871887812,0.34,137.15,137.06,0.17]
[1718871887995,0.34,137.15,137.05,86.91]
[1718871888195,0.17,137.15,137.06,0.17]
[1718871888397,0.34,137.15,137.05,86.91]
[1718871888596,0.34,137.14,137.05,86.91]
[1718871891515,0.34,137.14,137.05,65.0]
[1718871891714,0.34,137.14,137.05,86.91]
[1718871892509,20.0,137.17,137.06,0.51]
[1718871892701,0.17,137.16,137.06,0.51]
[1718871893715,0.51,137.16,137.06,0.51]
[1718871894611,0.17,137.15,137.05,20.0]
[1718871895317,21.63,137.15,137.05,20.0]
[1718871895518,0.17,137.13,137.05,20.0]
[1718871896228,0.17,137.13,137.0,6.4766]
[1718871896407,30.17,137.13,137.01,20.0]
[1718871896603,0.17,137.11,137.01,20.0]
[1718871896920,0.17,137.11,137.01,21.91]
[1718871897100,0.17,137.11,137.0,6.4766]
[1718871897301,20.51,137.12,137.0,6.4766]
[1718871897722,20.51,137.12,137.01,21.91]
[1718871898107,20.51,137.12,137.02,20.0]
[1718871898515,0.17,137.11,137.03,45.0]
[1718871898714,0.17,137.11,137.02,45.0]
[1718871899222,0.17,137.11,137.0,28.3866]
[1718871899396,0.17,137.11,137.0,6.4766]
[1718871900406,30.17,137.11,137.0,6.4766]
[1718871900611,0.17,137.09,137.01,45.0]
[1718871900819,0.17,137.09,136.96,21.5739]
[1718871900820,21.63,137.09,136.96,21.5739]
[1718871901026,0.17,137.07,136.96,21.5739]
[1718871901399,30.17,137.07,136.96,21.5739]
[1718871901624,0.17,137.05,136.96,21.5739]
[1718871901821,0.17,137.05,136.96,43.4839]
[1718871902534,0.17,137.05,136.97,20.0]
[1718871903826,30.0,137.07,136.98,66.91]
[1718871903997,30.0,137.07,136.99,41.91]
[1718871904203,21.46,137.12,137.01,21.91]
[1718871904421,5.1846288,137.13,137.02,20.0]
[1718871904718,21.46,137.14,137.03,45.0]
[1718871905314,21.46,137.11,137.03,45.0]
[1718871905510,0.17,137.1,137.03,45.0]
[1718871905698,0.68,137.1,137.03,45.0]
[1718871906427,20.68,137.1,137.03,45.0]
[1718871908009,20.68,137.1,136.97,21.91]
[1718871908208,0.17,137.07,136.96,21.5739]
[1718871908424,20.68,137.07,136.96,21.5739]
[1718871908628,20.68,137.07,136.96,43.4839]
[1718871908833,30.0,137.05,136.96,43.4839]
[1718871909122,0.51,137.04,136.96,21.5739]
[1718871909323,20.51,137.04,136.96,21.5739]
[1718871909525,0.17,137.03,136.96,21.5739]
[1718871909925,0.17,137.03,136.92,21.9005]
[1718871910219,30.17,137.03,136.92,43.8105]
[1718871910429,0.17,137.01,136.92,21.9005]
[1718871911930,30.17,137.01,136.92,21.9005]
[1718871912130,20.51,137.0,136.92,21.9005]
[1718871912435,0.17,136.99,136.89,6.6353]
[1718871912632,0.17,136.99,136.9,20.0]
[1718871913420,0.17,136.99,136.9,41.91]
[1718871913633,0.17,136.99,136.9,20.0]
[1718871913839,0.17,136.99,136.91,45.0]
[1718871914627,30.17,136.99,136.91,45.0]
[1718871914825,0.51,136.98,136.91,45.0]
[1718871916341,0.17,136.97,136.91,45.0]
[1718871916638,30.51,136.98,136.91,45.0]
[1718871917540,30.34,136.98,136.91,45.0]
[1718871917731,0.17,136.98,136.91,45.0]
[1718871917933,0.68,136.99,136.91,45.0]
[1718871918929,30.0,136.97,136.9,45.0]
[1718871919242,0.17,136.96,136.9,45.0]
[1718871920941,0.34,136.97,136.9,45.0]
[1718871921140,30.0,136.98,136.91,20.0]
[1718871921344,30.0,136.98,136.92,66.91]
[1718871921532,26.78906707,137.05,136.93,41.91]
[1718871921727,20.0,137.04,136.94,45.0]
[1718871921920,26.78906707,137.05,136.95,20.0]
[1718871922120,26.78906707,137.05,136.96,45.0]
[1718871923345,20.68,137.04,136.96,45.0]
[1718871926344,20.68,137.04,136.95,45.0]
[1718871927334,0.17,137.01,136.9,15.2898]
[1718871927649,20.68,137.01,136.9,15.2898]
[1718871928727,20.68,137.01,136.91,45.0]
[1718871930451,20.68,137.01,136.87,23.1815]
[1718871930657,20.68,137.01,136.88,20.0]
[1718871930946,20.68,137.01,136.89,1.45866426]
[1718871931445,21.46,136.99,136.89,1.45866426]
[1718871931639,20.68,136.98,136.89,46.45866426]
[1718871931839,20.68,136.98,136.89,45.0]
[1718871934744,0.17,136.98,136.89,66.91]
[1718871935058,21.46,137.03,136.9,42.08]
[1718871935231,20.0,137.02,136.91,45.0]
[1718871935735,21.46,136.99,136.87,23.1815]
[1718871935934,20.0,136.98,136.88,20.0]
[1718871936134,0.51,136.97,136.88,20.0]
[1718871936450,0.17,136.96,136.88,20.0]
[1718871937030,0.17,136.96,136.88,41.91]
[1718871937229,0.17,136.96,136.89,45.0]
[1718871938149,0.34,136.97,136.89,45.0]
[1718871938343,0.17,136.96,136.89,45.0]
[1718871939153,20.0,136.98,136.89,66.91]
[1718871939652,0.17,136.97,136.89,66.91]
[1718871940152,0.34,136.99,136.9,0.17]
[1718871940346,0.34,136.99,136.9,42.08]
[1718871940545,0.68,136.98,136.91,45.0]
[1718871940741,0.51,136.98,136.91,45.0]
[1718871940942,0.17,136.97,136.91,45.0]
[1718871943148,0.17,136.98,136.91,45.0]
[1718871943354,0.17,137.0,136.91,45.0]
[1718871943534,0.51,137.0,136.91,45.0]
[1718871944527,0.17,136.99,136.91,45.0]
[1718871944754,0.17,136.98,136.91,45.0]
[1718871944943,0.51,136.99,136.91,45.0]
[1718871945256,0.17,136.98,136.91,45.0]
[1718871946652,20.0,137.01,136.91,66.91]
[1718871947256,20.0,137.01,136.91,45.0]
[1718871947564,20.0,137.01,136.91,66.91]
[1718871947860,20.0,137.02,136.92,41.91]
[1718871948045,0.51,137.01,136.93,45.0]
[1718871948247,20.0,137.03,136.93,45.0]
[1718871948443,21.07532904,137.06,136.94,43.6854]
[1718871948643,21.07532904,137.06,136.95,86.91]
[1718871948845,20.0,137.05,136.95,86.91]
[1718871949047,21.07532904,137.06,136.96,0.51]
[1718871949239,1.27058048,137.12,136.99,15.3027]
[1718871949557,21.07532904,137.13,137.01,0.17]
[1718871949558,41.07532904,137.13,137.01,0.17]
[1718871949857,21.07532904,137.13,137.04,0.17]
[1718871950066,21.07532904,137.13,137.04,42.08]
[1718871950246,255.9,137.14,137.05,45.0]
[1718871950450,21.46,137.19,137.06,20.0]
[1718871950451,21.05341202,137.13,137.06,20.0]
[1718871950776,5.26834223,137.16,137.07,45.0]
[1718871950777,21.46,137.16,137.07,45.0]
[1718871950943,20.0,137.15,137.07,45.0]
[1718871951964,21.46,137.16,137.07,45.0]
[1718871952438,0.34,137.15,137.07,45.0]
[1718871952633,0.51,137.14,137.07,45.0]
[1718871952857,0.17,137.13,137.07,45.0]
[1718871953163,0.34,137.13,137.07,45.0]
[1718871953654,0.51,137.12,137.07,45.0]
[1718871953849,0.34,137.11,137.07,45.0]
[1718871954050,0.51,137.1,137.07,45.0]
[1718871954251,0.17,137.09,137.07,45.0]
[1718871954492,0.17,137.09,137.0,6.4071]
[1718871956257,0.17,137.09,137.01,45.0]
[1718871956645,20.0,137.12,137.01,66.91]
[1718871956855,20.0,137.12,137.02,20.0]
[1718871957050,20.0,137.12,137.03,45.0]
[1718871957964,0.34,137.11,137.03,45.0]
[1718871958154,0.17,137.1,137.03,45.0]
[1718871958764,0.17,137.09,137.03,45.0]
[1718871958966,0.51,137.09,137.03,45.0]
[1718871959141,0.17,137.08,137.03,45.0]
[1718871959340,0.51,137.08,137.03,45.0]
[1718871960762,0.17,137.07,137.0,6.4071]
[1718871960961,0.51,137.07,137.0,6.4071]
[1718871961165,0.17,137.06,137.0,6.4071]
[1718871961349,0.51,137.06,137.0,6.4071]
[1718871961547,0.17,137.05,137.0,6.4071]
[1718871961759,0.51,137.05,136.99,15.3027]
[1718871961943,0.17,137.04,136.99,15.3027]
[1718871962143,0.34,137.04,136.99,15.3027]
[1718871962461,0.17,137.04,136.99,15.3027]
[1718871962656,0.34,137.04,136.99,15.3027]
[1718871962968,0.17,137.03,136.99,15.3027]
[1718871963157,0.34,137.03,136.99,15.3027]
[1718871963550,0.34,137.03,136.97,6.4313]
[1718871964262,5.4163996,137.08,136.98,45.0]
[1718871964459,20.0,137.09,136.98,45.0]
[1718871964460,20.34,137.07,136.98,45.0]
[1718871964648,0.17,137.05,136.98,45.0]
[1718871964968,0.34,137.05,136.98,45.0]
[1718871965156,0.34,137.04,136.98,45.0]
[1718871965354,0.17,137.03,136.98,45.0]
[1718871966054,0.17,137.08,136.98,45.0]
[1718871966251,0.51,137.08,136.98,45.0]
[1718871966460,0.17,137.07,136.98,45.0]
[1718871967255,25.36050006,137.09,136.98,45.0]
[1718871967454,20.0,137.09,136.99,41.91]
[1718871967770,20.0,137.1,137.0,45.0]
[1718871968067,25.37061522,137.1,137.0,45.0]
[1718871969156,0.17,137.09,137.0,45.0]
[1718871969367,0.68,137.09,137.0,45.0]
[1718871971676,0.34,137.09,137.0,45.0]
[1718871971862,25.37061522,137.1,137.0,45.0]
[1718871972957,0.34,137.09,137.0,45.0]
[1718871973157,0.17,137.08,137.0,45.0]
[1718871974150,0.17,137.08,137.0,66.91]
[1718871974367,0.17,137.08,137.01,15.8149]
[1718871974572,21.05963262,137.14,137.03,6.5687]
[1718871974761,20.0,137.13,137.04,45.0]
[1718871974946,402.46,137.16,137.04,45.0]
[1718871974947,20.0,137.14,137.04,45.0]
[1718871976475,20.0,137.15,137.04,45.0]
[1718871976989,25.3433917,137.15,137.04,45.0]
[1718871977367,0.68,137.14,137.04,45.0]
[1718871980367,0.68,137.14,137.03,28.4787]
[1718871980368,21.46,137.13,137.03,6.5687]
[1718871980570,0.17,137.11,137.03,6.5687]
[1718871980767,0.17,137.09,137.03,6.5687]
[1718871980971,20.68,137.09,137.03,6.5687]
[1718871981579,20.68,137.09,137.01,15.8149]
[1718871981956,18.18,137.09,137.01,15.8149]
[1718871982156,0.34,137.08,137.01,15.8149]
[1718871982356,21.63,137.07,137.0,6.314]
[1718871982781,21.63,137.07,136.97,22.2618]
[1718871983982,21.63,137.07,136.98,45.0]
[1718871984179,0.17,137.05,136.98,45.0]
[1718871984504,0.34,137.05,136.98,45.0]
[1718871984688,0.34,137.04,136.98,45.0]
[1718871984989,0.17,137.03,136.98,45.0]
[1718871985186,0.34,137.03,136.92,21.46]
[1718871985359,0.17,137.01,136.93,41.9456]
[1718871985559,0.34,137.01,136.93,21.9456]
[1718871985784,0.34,137.0,136.93,21.9456]
[1718871986080,0.17,136.99,136.93,21.9456]
[1718871986786,0.17,136.99,136.94,45.0]
[1718871987083,0.34,136.99,136.93,21.9456]
[1718871987468,0.17,136.98,136.93,21.9456]
[1718871987875,0.34,136.98,136.93,21.9456]
[1718871988085,0.34,136.99,136.93,21.9456]
[1718871989086,0.34,136.99,136.94,45.0]
[1718871989989,0.17,136.99,136.94,45.0]
[1718871990189,0.17,137.02,136.94,45.0]
[1718871990381,0.68,137.02,136.94,45.0]
[1718871990884,7.62691039,137.07,136.94,45.0]
[1718871990885,21.46,137.07,136.94,45.0]
[1718871992190,0.68,137.06,136.94,45.0]
[1718871992580,20.68,137.06,136.94,45.0]
[1718871994301,20.0,137.06,136.94,66.91]
[1718871994681,20.0,137.06,136.95,41.91]
[1718871994976,20.0,137.06,136.96,45.0]
[1718871995384,20.0,137.06,136.96,66.91]
[1718871996677,0.34,137.05,136.97,41.91]